Cogmind - Beta 14 @@@ ROGUE MODE // 2024.10.17 @ 06:34:35 Player: XDRM Result: Destroyed by as-16474 with Assembled Rifle Performance ------------- Evolutions (0) 0 Regions Visited (4) 800 Robots Destroyed (35) 175 Value Destroyed (824) 824 Prototype IDs (23) 460 Alien Tech Used (0) 0 Bonus (300) 300 TOTAL SCORE: 2559 Bonus ------- Aligned with FarCom 300 Cogmind --------- Core Integrity 0/250 Matter 254/300 Energy 265/265 System Corruption 0% Temperature Cool (18) Movement Walking (470) Ox5 Location -9/Mines Parts ------- > --- POWER (1) -------- Reinforced Ion Engine > --- PROPULSION (2) --- Aluminum Leg Aluminum Leg > --- UTILITY (2) ------ Huge Storage Unit Hardened Light Armor Plating > --- WEAPON (2) ------- Particle Gun Shotgun > --- INVENTORY (25) --- Ion Engine Ion Engine Light Ion Engine Light Ion Engine Light Ion Engine Light Treads Aluminum Leg Aluminum Leg Aluminum Leg Aluminum Leg Aluminum Leg Aluminum Leg Heat Sink Heat Sink Small Storage Unit Medium Laser Medium Laser Medium Laser Medium Laser Light Assault Rifle XL Autogun Array Mining Laser Peak State ------------ > --- POWER ------------ Reinforced Ion Engine > --- PROPULSION ------- Aluminum Leg Aluminum Leg > --- UTILITY ---------- Huge Storage Unit Hardened Light Armor Plating > --- WEAPON ----------- Particle Gun Shotgun > --- INVENTORY -------- Ion Engine Ion Engine Light Ion Engine Light Ion Engine Light Ion Engine Light Treads Aluminum Leg Aluminum Leg Aluminum Leg Aluminum Leg Aluminum Leg Aluminum Leg Heat Sink Heat Sink Small Storage Unit Medium Laser Medium Laser Medium Laser Medium Laser Light Assault Rifle XL Autogun Array Mining Laser [Rating: 16] Favorites ----------- Power Light Ion Engine Engine Light Ion Engine Propulsion Aluminum Leg Treads Light Treads Leg Aluminum Leg Utility Huge Storage Unit Device Heat Sink Storage Huge Storage Unit Protection Hardened Light Armor Plating Weapon Particle Gun Energy Gun Particle Gun Energy Cannon Beam Cannon Ballistic Gun Light Assault Rifle Launcher Grenade Launcher Special Weapon Mining Laser Build | -11 -10 -10 -10 -9 ------- Run | Yrd Mat Min Exi Min Slots Evolved . | . . . . . Power . | . . . . . Propulsion . | . . . . . Utility . | . . . . . Weapon . | . . . . . Parts Attached 39 | 6 19 2 . 12 Power 6 | 1 3 . . 2 Engine 6 | 1 3 . . 2 Core . | . . . . . Reactor . | . . . . . Propulsion 9 | 2 5 . . 2 Treads 3 | 2 . . . 1 Leg 6 | . 5 . . 1 Wheel . | . . . . . Hover . | . . . . . Flight . | . . . . . Utility 5 | 1 2 . . 2 Device 1 | . 1 . . . Storage 3 | 1 1 . . 1 Processor . | . . . . . Hackware . | . . . . . Protection 1 | . . . . 1 Artifact . | . . . . . Weapon 19 | 2 9 2 . 6 Energy Gun 6 | . 3 1 . 2 Energy Cannon 2 | . 2 . . . Ballistic Gun 5 | 2 1 . . 2 Ballistic Cannon . | . . . . . Launcher 5 | . 3 1 . 1 Special Weapon 1 | . . . . 1 Impact Weapon . | . . . . . Slashing Weapon . | . . . . . Piercing Weapon . | . . . . . Special Melee Weapon . | . . . . . Unidentified Prototypes . | . . . . . Parts Lost 11 | . 10 . . 1 Power 3 | . 3 . . . Propulsion 3 | . 3 . . . Utility . | . . . . . Weapon 5 | . 4 . . 1 Highest Loss Streak 3 | . 3 . . 1 To Critical Strikes . | . . . . . Average Slot Usage (%) 91 | . 77 100 100 100 Engine 13 | . 12 14 14 14 Treads 2 | . 6 . . . Leg 23 | . 15 28 28 28 Device 8 | . 3 14 14 8 Storage 14 | . 14 14 14 14 Protection 1 | . . . . 5 Energy Gun 19 | . 14 25 28 16 Energy Cannon 1 | . 3 2 . . Ballistic Gun 4 | . 6 . . 8 Peak Build Rating 16 | 6 9 10 13 16 Average Rating 10 | 3 6 9 11 14 On Entrance 7 | . 6 9 10 13 Naked Turns . | . . . . . Heaviest Build 101 | 11 90 90 88 101 Greatest Support 40 | 40 40 20 20 20 Greatest Overweight (x) 8 | . 8 4 4 5 Average Overweight (x) 3 | . 4 4 4 4 Largest Inventory Capacity 25 | 8 25 25 25 25 Average Capacity 24 | 6 24 25 25 24 Most Carried 25 | 4 18 20 25 25 Average Carried 17 | 2 10 19 22 23 Final Capacity 25 | 8 25 25 25 25 Final Carried 25 | 2 18 20 25 25 Class Distribution -------------------- 70% | Scavenger-Mutant 29% | Mutant Dominant Class ---------------- Mutant | -10/Materials Scavenger-Mutant | -10/Mines Scavenger-Mutant | -10/Exiles Scavenger-Mutant | -9/Mines Resources | -11 -10 -10 -10 -9 ----------- Run | Yrd Mat Min Exi Min Matter Collected 799 | 162 433 45 . 159 Remotely . | . . . . . Salvage Created 994 | . 816 27 . 151 Parts 64 | . 42 9 . 13 Haulers Intercepted 2 | . 2 . . . Recyclers Shooed . | . . . . . Parts Field Recycled . | . . . . . Retrieved Matter . | . . . . . Parts Self-Destructed . | . . . . . Prevented . | . . . . . Kills | -11 -10 -10 -10 -9 ------- Run | Yrd Mat Min Exi Min Combat Hostiles Destroyed 32 | . 19 3 . 10 Guns 23 | . 13 1 . 9 Cannons 1 | . 1 . . . AOE 8 | . 5 2 . 1 Classes Destroyed 7 | . 5 . . 2 Worker 4 | . 3 1 . . Hauler 2 | . 2 . . . Recycler 1 | . 1 . . . Swarmer 10 | . 3 3 . 4 Grunt 17 | . 16 . . 1 Brawler 1 | . . . . 1 Assembled 4 | . . . . 4 Best Kill Streak 4 | . 4 3 . 4 Combat Bots Only 4 | . 3 3 . 4 Max Kills in Single Turn 3 | . 3 2 . 2 Gunslinging 1 | . . . . 1 Exploded 2 | . 2 2 . 1 Melee . | . . . . . Uniques/NPCs Destroyed . | . . . . . Combat | -11 -10 -10 -10 -9 -------- Run | Yrd Mat Min Exi Min Hostile Shots Fired 187 | . 134 12 . 41 Missed 53 | . 38 2 . 13 Damage Taken 1601 | . 1166 75 . 360 Core 251 | . 131 21 . 99 Absorbed by Shields . | . . . . . Core Remaining (%) 100 | 100 . . . . Volleys Fired 116 | . 86 5 . 25 Largest 2 | . 2 2 . 2 Hottest 125 | . 125 105 . 115 Shots Fired 216 | . 158 10 . 48 Gun 196 | . 140 9 . 47 Cannon 8 | . 8 . . . Launcher 12 | . 10 1 . 1 Special . | . . . . . Kinetic 89 | . 74 . . 15 Thermal 115 | . 74 9 . 32 Explosive 12 | . 10 1 . 1 Electromagnetic . | . . . . . Robot Hit Streak 17 | . 17 1 . 12 Robot Miss Streak 5 | . 3 4 . 5 Penetration Max . | . . . . . Secondary Targets 2 | . 1 . . 1 Max Gunslinging Chain 1 | . 1 . . 1 Shots Hit Robots 133 | . 102 1 . 30 Core Hits 68 | . 46 4 . 18 Critical Kills . | . . . . . Critical Parts Destroyed . | . . . . . Critical Strikes 2 | . 1 . . 1 Burn 2 | . 1 . . 1 Melee Attacks . | . . . . . Impact . | . . . . . Slashing . | . . . . . Piercing . | . . . . . Sneak Attacks . | . . . . . Combat Hostiles . | . . . . . Follow-up Attacks . | . . . . . Damage Inflicted 2542 | . 1911 151 . 480 Guns 1525 | . 1093 16 . 416 Cannons 107 | . 107 . . . Explosions 895 | . 711 120 . 64 Melee . | . . . . . Ramming 15 | . . 15 . . Kinetic 605 | . 492 . . 113 Thermal 1190 | . 871 16 . 303 Explosive 732 | . 548 120 . 64 Electromagnetic . | . . . . . Impact . | . . . . . Slashing . | . . . . . Piercing . | . . . . . Highest Corruption . | . . . . . Average Corruption . | . . . . . Corruption Purged . | . . . . . Corruption Blocked . | . . . . . Overload Shots . | . . . . . Overflow Damage 20 | . 20 . . . Projectiles 6 | . 6 . . . Explosions 14 | . 14 . . . Melee . | . . . . . Knockbacks . | . . . . . Impact . | . . . . . Kinetic . | . . . . . Secondary . | . . . . . Self-Inflicted Damage 109 | . 107 2 . . Shots 4 | . 3 1 . . Rammed . | . . . . . Targets Rammed 2 | . . 2 . . Kicked 2 | . . 2 . . Crushed . | . . . . . Highest Temperature 343 | . 343 60 . 324 Average Temperature 79 | . 59 25 . 113 Received Heat Transfer 574 | . 528 . . 46 Effects 5 | . 2 . . 3 Energy Bleed 1 | . . . . 1 Interference 4 | . 2 . . 2 Siege Activations . | . . . . . Robots Corrupted . | . . . . . Combat Hostiles . | . . . . . Parts Fried . | . . . . . Impact Corruptions . | . . . . . Robots Melted . | . . . . . Combat Hostiles . | . . . . . Parts Melted 2 | . 2 . . . Heat Transferred 2612 | . 1785 37 . 790 Parts Sabotaged . | . . . . . Parts Stolen . | . . . . . Parts Stripped . | . . . . . Power Chain Reactions . | . . . . . Alert | -11 -10 -10 -10 -9 ------- Run | Yrd Mat Min Exi Min Peak Influence 228 | . 228 97 . 86 Initial . | . . . . . Average 46 | . 55 75 . 31 Maximum Alert Level 1 | . 1 . . . Low Security (%) 99 | 100 98 100 . 100 Level 1 . | . 1 . . . Level 2 . | . . . . . Level 3 . | . . . . . Level 4 . | . . . . . Level 5 . | . . . . . High Security . | . . . . . Max Security . | . . . . . Squads Dispatched 5 | . 5 . . . Investigation 3 | . 3 . . . Extermination . | . . . . . Reinforcement 2 | . 2 . . . Assault . | . . . . . Garrison . | . . . . . Intercept . | . . . . . Searches Triggered . | . . . . . Construction Impeded . | . . . . . Haulers Reinforced . | . . . . . Active Scanning Responses . | . . . . . Cargo Convoy Interrupts . | . . . . . Stealth | -11 -10 -10 -10 -9 --------- Run | Yrd Mat Min Exi Min Distress Signals 5 | . 4 . . 1 Communications Jammed . | . . . . . Distress Signals . | . . . . . Times Spotted 45 | . 30 3 . 12 Peak Tracking Total 4 | . 4 3 . 4 Tactical Retreats . | . . . . . Traps | -11 -10 -10 -10 -9 ------- Run | Yrd Mat Min Exi Min Traps Triggered . | . . . . . Indirectly . | . . . . . Trap Hack Attempts . | . . . . . Triggered . | . . . . . Disarmed . | . . . . . Reprogrammed . | . . . . . Reused . | . . . . . Traps Extracted . | . . . . . Installed . | . . . . . Triggered . | . . . . . Machines | -11 -10 -10 -10 -9 ---------- Run | Yrd Mat Min Exi Min Machines Disabled 8 | . 7 1 . . Max in Single Turn 3 | . 3 1 . . Machines Repaired . | . . . . . Machines Dismantled . | . . . . . Machines Sabotaged . | . . . . . Overloaded Fab Kills . | . . . . . Hacking | -11 -10 -10 -10 -9 --------- Run | Yrd Mat Min Exi Min Machines Accessed 5 | . 4 . 1 . Terminals 3 | . 3 . . . Fabricators . | . . . . . Repair Stations . | . . . . . Recycling Units 1 | . 1 . . . Scanalyzers . | . . . . . Garrison Access . | . . . . . Total Hacks 12 | . 11 . 1 . Successful 4 | . 3 . 1 . Failed 8 | . 8 . . . Catastrophic 2 | . 2 . . . Database Lockouts . | . . . . . Manual 9 | . 8 . 1 . Terminals 8 | . 8 . . . Fabricators . | . . . . . Repair Stations . | . . . . . Recycling Units 3 | . 3 . . . Scanalyzers . | . . . . . Garrison Access . | . . . . . Terminal Hacks 3 | . 2 . 1 . Unreport Threat 2 | . 2 . . . Derelict Proto ID Bank 1 | . . . 1 . Fabricator Hacks . | . . . . . Repair Station Hacks . | . . . . . Recycling Unit Hacks 1 | . 1 . . . Report Inventory 1 | . 1 . . . Scanalyzer . | . . . . . Garrison Access Hacks . | . . . . . Unauthorized Hacks . | . . . . . Terminals . | . . . . . Fabricators . | . . . . . Repair Stations . | . . . . . Recycling Units . | . . . . . Scanalyzers . | . . . . . Garrison Access . | . . . . . Data Cores Recovered . | . . . . . Used . | . . . . . Hacking Detections 4 | . 4 . . . Full Trace Events 3 | . 3 . . . Feedback Events . | . . . . . Feedback Blocked . | . . . . . Robot Schematics Acquired . | . . . . . Robots Built . | . . . . . Authchips . | . . . . . Time . | . . . . . Total Robot Build Rating . | . . . . . Part Schematics Acquired . | . . . . . Parts Built . | . . . . . Authchips . | . . . . . Time . | . . . . . Total Part Build Rating . | . . . . . Parts Repaired . | . . . . . Time . | . . . . . Parts Recycled . | . . . . . Recycled Matter . | . . . . . Retrieved Matter . | . . . . . Retrieved Components . | . . . . . Parts Scanalyzed . | . . . . . Part Schematics Acquired . | . . . . . Parts Damaged . | . . . . . Bothacking | -11 -10 -10 -10 -9 ------------ Run | Yrd Mat Min Exi Min Used RIF Installer . | . . . . . Robots Hacked . | . . . . . Non-combat . | . . . . . Combat . | . . . . . Robot Hacks Applied . | . . . . . Relay Couplers Released . | . . . . . Fabnet Peak Effective % . | . . . . . Robots Rewired . | . . . . . Allies Hacked . | . . . . . Hacks Repelled . | . . . . . Allies | -11 -10 -10 -10 -9 -------- Run | Yrd Mat Min Exi Min Total Allies . | . . . . . Largest Group . | . . . . . Highest-Rated Group . | . . . . . Highest-Rated Ally . | . . . . . Total Orders . | . . . . . Ally Attacks . | . . . . . Total Damage . | . . . . . Kills . | . . . . . Allies Corrupted . | . . . . . Allies Melted . | . . . . . Intel | -11 -10 -10 -10 -9 ------- Run | Yrd Mat Min Exi Min Robot Analysis Total . | . . . . . Derelict Logs Recovered 2 | . . . . 2 Drone Launches . | . . . . . Drone Recoveries . | . . . . . Exploration | -11 -10 -10 -10 -9 ------------- Run | Yrd Mat Min Exi Min Turns Passed 4628 | 81 1691 288 1238 1330 Spaces Moved 1043 | 68 312 66 310 287 Core 35 | 35 . . . . Treads 124 | 33 91 . . . Legs 884 | . 221 66 310 287 Wheels . | . . . . . Hover . | . . . . . Flight . | . . . . . Fastest Speed 50 | 50 160 400 400 400 Average Speed 402 | 103 450 400 400 423 Slowest Speed 680 | 160 680 400 400 470 Overloaded Moves . | . . . . . Propulsion Burnouts . | . . . . . Robots Hopped . | . . . . . Cave-ins Triggered . | . . . . . Exploration Rate (%) 38 | 4 46 25 62 53 Regions Visited 4 Branch Regions 3 Pre-discovered Areas . | . . . . . Known Exits Taken . | . . . . . Unknown Exits Taken 4 | 1 1 1 1 . Scrap Searched 1 | . . 1 . . Spaces Dug . | . . . . . Terrain Destroyed 116 | . 103 7 . 6 Melee . | . . . . . Projectile . | . . . . . AOE 116 | . 103 7 . 6 Terrain Rammed . | . . . . . Walls Destroyed . | . . . . . Machines Disabled . | . . . . . Actions | -11 -10 -10 -10 -9 --------- Run | Yrd Mat Min Exi Min Total 1266 | 77 449 76 311 353 Wait 10 | . 7 . . 3 Move 1039 | 67 311 65 309 287 Hop . | . . . . . Pick Up 53 | 4 25 2 2 20 Fast Attach 10 | 4 2 . . 4 Attach 13 | 2 10 . . 1 Detach 1 | . . . . 1 Swap 16 | . 7 2 . 7 Drop 6 | . 1 . . 5 Fire 116 | . 86 5 . 25 Melee . | . . . . . Ram . | . . . . . Kick 2 | . . 2 . . Crush . | . . . . . Escape Stasis . | . . . . . Rewire . | . . . . . Trap . | . . . . . Miscellaneous . | . . . . . Route ------- -11/Scrapyard -10/Materials (discovered 4 exits: [*Mat] / [*Min x2] / [*Sub]) -10/Mines -10/Exiles (discovered 2 exits: [*Min x2]) -9/Mines (discovered 1 exit: Mat) History --------- Turn | Location | Event 4 | -11/Scrapyard | Discovered new exit (range 16) 82 | -11/Scrapyard | Entered Materials 226 | -10/Materials | Discovered new exit (range 16) 306 | -10/Materials | Build established: Mutant 784 | -10/Materials | Discovered new exit (range 12) 929 | -10/Materials | Discovered new exit (range 12) 1373 | -10/Materials | Lost 3 parts (2p1w) 1394 | -10/Materials | Discovered new exit (range 14) 1651 | -10/Materials | Core integrity fell below 50% 1773 | -10/Materials | Entered Mines 1936 | -10/Mines | Build established: Scavenger-Mutant 2045 | -10/Mines | Deemed a non-threat by the Exiles lab entrance 2045 | -10/Mines | Discovered new exit (range 5) 2061 | -10/Mines | Entered Exiles 2121 | -10/Exiles | Discovered new exit (range 15) 2177 | -10/Exiles | Met 8R-AWN 2237 | -10/Exiles | Met EX-HEX 2365 | -10/Exiles | Met EX-BIN 2421 | -10/Exiles | Aligned with FarCom system 2425 | -10/Exiles | Given EX-Vault access code 2565 | -10/Exiles | Opened EX-Vault 2585 | -10/Exiles | Found XL Autogun Array 2678 | -10/Exiles | Warned to stay clear of 0b10 Research branches 2994 | -10/Exiles | Met EX-DEC 3255 | -10/Exiles | Discovered new exit (range 12) 3299 | -10/Exiles | Left Exiles lab with XL Autogun Array 3299 | -10/Exiles | Entered Mines 3374 | -9/Mines | Learned Materials terminal intel 4093 | -9/Mines | Joined a pair of Derelicts in attacking an 0b10 outpost 4371 | -9/Mines | Assembled infested the area 4389 | -9/Mines | Identified exit to Materials 4461 | -9/Mines | Core integrity fell below 20% 4629 | -9/Mines | Destroyed by as-16474 with Assembled Rifle Last Messages --------------- 04299_ U-05 Engineer lays Concrete. 04310_ U-05 Engineer builds a Wall. 04321_ U-05 Engineer lays Concrete. 04323_ U-05 Engineer builds a Wall. 04340_ U-05 Engineer lays Concrete. 04371_ ALERT: Infestation in the mines, dispatching Demolisher response squad. 04389_ Acquired derelict log, extracted data. Loading 1 Mines exit... 04425_ as-57167 destroyed. 04456_ Acquired 11 matter. 04475_ as-94652 destroyed. 04478_ Acquired 13 matter. 04489_ Overheating: Energy bleed (-58). 04516_ as-61875 suffers critical hit (Burn). 04525_ as-61875 destroyed. 04529_ Overheating: System interference. 04529_ Shotgun temporarily disabled. 04537_ Acquired 10 matter. 04569_ as-75824 destroyed. Map ----- +----------------------------------------------------+ | ???????????????????????????????????? | | ???????????????????????????????????? | | ???????????????????????????????????? | | ???????????????????????????????????? | | ???????????????????????????????????? | | ???????????????????????????????????? | | ???????????????????????????????????? | | ???????????????????????????????????? | | ???????????????????????????????????? | | ??????????????????? ???????????????? | | ??????????????????? #??????????????? | | ??????????????????? #??????????????? | | ??????????????????%|#??????? ####??? | | ??????????????????=!#?????? ##? | | ?????????????????? #?????? #? | | ?????????????????? #??????? ? | | ?????????????????? #??????? ?? | | ?????????????????? #???????? ?? | | ?????????????????? #???????? ?? | | ????????????????## #????????? ?? | | ???????????????## ###??????? #?? | | ????????########%< ##??????# #?? | | ?????#### ## #?# #?? | | ????## a a % ????# #?# | | ???## #???????????# ### | | ???# @##### #??????????## | | ??# ####???# #??????????# | | ??# ##??????# #####??????# ## | | ??## ###???????# #??????# #### | | ???###??????????##### #??????# #### | | ????????????????????# #??????# ## | | ?????????????######## ######## ## | | ????????????# ## | | ????????????# ################ ### | | ?????????????????????????????# ## ! | | ?????????????????????????????# ##! | | ?????????????????????????????# ###" | | ????????????????????????????? #?## | | ?????????????????????????????####??# | | ???????????????????????????????????? | | ???????????????????????????????????? | | ???????????????????????????????????? | | ???????????????????????????????????? | | ??????????????????????????????###### | | ??????????????????????????????# | | ??????????????????????????????# "" | | ??????????????????????????????# "" | | ??????????????????????????????# "" | | ??????????????????????????????# | | ??????????????????????????????###### | +----------------------------------------------------+ Best States ------------- Heat Dissipation 35 Energy Generation 12 Energy Capacity 265 Matter Stores 300 Matter Capacity 300 Sight Range 16 Terrain Scan Density 10 Armor Coverage 150 Evasion (%) 50 Recoil Reduction 2 Item Schematics ----------------- None Robot Schematics ------------------ None Fabricated ------------ Nothing Alien Tech Used ----------------- None Achievements -------------- None Challenges ------------ None Game ------ Seed DeuteriumCryofiberComputer Manual? 0 Play Time 00:44:04 Cumulative 36.2 hours Start 2024.10.17 @ 04:30:45 End 2024.10.17 @ 06:34:35 Sessions 1 Manual Loads 0 Difficulty Rogue Special Mode None Game No. 23 Rogue 23 Adventurer 0 Explorer 0 Win Type - Total 0 Types 0/0/0/0/0/0/0/0/0 Lore% 15 Gallery% 27 Achievement% 28 Wizard Run 0 Options --------- Layout 1 ASCII 0 Keyboard 0 Movement Mouse Keybinds 0 Fullscreen 2 Font 24/X11 Map View 50x35 Zoom Use 0% Tactical HUD 1 Map Filters NONE Filters NONE Steam 1 RUN: 14548a39-11c7-4b56-bb5a-1aa6ef374f07